fUSD/lending_fUSD_20240123
["ID","MTS","AMOUNT","RATE_DAILY","PERIOD"]
[312580419,1706025034104,-82609.24572744,0.00023007,2]
[312580420,1706025034142,-4133.54788556,0.00023007,2]
[312580421,1706025034167,-8109.25444197,0.00023007,2]
[312580422,1706025034190,-2952.02338367,0.00023007,2]
[312580423,1706025034202,-1402.25005701,0.00023007,2]
[312580424,1706025034215,-764.36761815,0.00023007,2]
[312580425,1706025034227,-18362.08082362,0.00023007,2]
[312580426,1706025034247,-1409.78153758,0.00023007,2]
[312580427,1706025034261,-10978.99999995,0.00023007,2]
[312580430,1706025034273,-543.29728188,0.00023007,2]
[312580433,1706025034285,-480.00571192,0.00023007,2]
[312580513,1706025039191,-7511.69383817,0.00023007,2]
[312580514,1706025039202,-3779.24952656,0.00023007,2]
[312580515,1706025039277,-11411.79023463,0.00023007,2]
[312580516,1706025039287,-5147.4477,0.00023008,2]
[312580517,1706025039297,-1000.0,0.00023008,2]
[312580518,1706025039307,-10786.89,0.00023055,2]
[312580519,1706025039317,-167.35,0.00023071,2]
[312580520,1706025039327,-1301.7,0.00023108,2]
[312580521,1706025039337,-1024.54,0.00023108,2]
[312580522,1706025039346,-150.99,0.00023108,2]
[312580523,1706025039356,-9999.99,0.00023108,2]
[312580524,1706025039366,-499.99,0.00023109,2]
[312580525,1706025039376,-546.59,0.00023109,2]
[312580526,1706025039385,-526.52,0.00023109,2]
[312580527,1706025039394,-91394.6763,0.00023109,2]
[312580528,1706025039404,-300.0,0.00023109,2]
[312580529,1706025039413,-1000.0,0.00023109,2]
[312580530,1706025039423,-233.76,0.00023313,2]
[312580531,1706025039433,-172.57,0.00023328,2]
[312580532,1706025039442,-230.66712149,0.00023656,2]
[312580533,1706025039452,-250.0,0.00023962,2]
[312580534,1706025039462,-355.07,0.0002426,2]
[312580535,1706025039472,-230.66712149,0.0002444,2]
[312580536,1706025039481,-153.6,0.00024658,2]
[312580537,1706025039490,-450.0,0.00025,3]
[312580538,1706025039502,-230.66712149,0.00025225,2]
[312580539,1706025039511,-157.42,0.00025332,2]
[312580540,1706025039520,-230.66712149,0.0002601,2]
[312580541,1706025039530,-168.99,0.00026132,2]
[312580542,1706025039541,-813.51,0.0002615,2]
[312580543,1706025039550,-250.0,0.00026182,2]
[312580544,1706025039560,-500.0,0.00026184,2]
[312580545,1706025039570,-544.33,0.0002623,2]
[312580546,1706025039578,-16387.78,0.00026234,2]
[312580547,1706025039588,-2000.0,0.00026244,2]
[312580548,1706025039597,-386.57,0.00026258,2]
[312580549,1706025039607,-150.0,0.00026288,2]
[312580550,1706025039616,-332.17,0.00026479,2]
[312580551,1706025039626,-355.07,0.00026524,2]
[312580552,1706025039635,-332.17,0.00026552,2]
[312580553,1706025039644,-1570.25,0.00026575,2]
[312580554,1706025039654,-332.17,0.00026625,2]
[312580555,1706025039663,-332.17,0.00026697,2]
[312580556,1706025039686,-332.17,0.0002677,2]
[312580557,1706025039695,-230.66712149,0.00026794,2]
[312580558,1706025039705,-2482.7,0.00026831,2]
[312580559,1706025039715,-360.24556117,0.00026835,3]
[312580560,1706025039725,-332.17,0.00026843,2]
[312580562,1706025039734,-332.17,0.00026915,2]
[312580563,1706025039743,-332.17,0.00026988,2]
[312580564,1706025039755,-155.31278064,0.00026999,2]
[312580565,1706025039764,-416.03748782,0.00027,2]
[312580566,1706025039774,-500.0,0.00027,3]
[312580567,1706025039783,-332.17,0.00027061,2]
[312580568,1706025039793,-332.17,0.00027133,2]
[312580569,1706025039802,-544.33,0.00027201,2]
[312580570,1706025039812,-332.17,0.00027206,2]
[312580571,1706025039821,-332.17,0.00027278,2]
[312580572,1706025039830,-332.17,0.00027351,2]
[312580573,1706025039839,-298.21,0.00027397,2]
[312580574,1706025039848,-303.44,0.00027397,2]
[312580575,1706025039857,-159.14,0.00027397,2]
[312580576,1706025039867,-196.03,0.00027397,2]
[312580577,1706025039875,-332.17,0.00027424,2]
[312580578,1706025039884,-332.17,0.00027496,2]
[312580579,1706025039894,-332.17,0.00027569,2]
[312580580,1706025039903,-230.66712149,0.00027579,2]
[312580581,1706025039912,-332.17,0.00027642,2]
[312580582,1706025039921,-238.32,0.00027658,2]
[312580583,1706025039932,-298.21,0.00027686,2]
[312580584,1706025039940,-332.17,0.00027714,2]
[312580585,1706025039949,-332.17,0.00027787,2]
[312580586,1706025039958,-813.51,0.00027794,2]
[312580587,1706025039968,-332.17,0.00027859,2]
[312580588,1706025039977,-298.21,0.00027974,2]
[312580589,1706025039986,-689.47449739,0.00028,2]
[312580590,1706025039996,-544.33,0.00028171,2]
[312580591,1706025040007,-298.21,0.00028262,2]
[312580592,1706025040016,-230.66712149,0.00028364,2]
[312580593,1706025040025,-159.14,0.00028493,2]
[312580594,1706025040034,-298.21,0.00028551,2]
[312580595,1706025040043,-355.07,0.00028788,2]
[312580596,1706025040053,-298.21,0.00028839,2]
[312580597,1706025040062,-550.0,0.00029,3]
[312580598,1706025040071,-238.32,0.00029027,2]
[312580599,1706025040080,-298.21,0.00029128,2]
[312580600,1706025040090,-544.33,0.00029142,2]
[312580601,1706025040099,-230.66712149,0.00029148,2]
[312580602,1706025040108,-323.14224298,0.00029308,2]
[312580603,1706025040117,-298.21,0.00029416,2]
[312580604,1706025040126,-813.51,0.00029438,2]
[312580605,1706025040135,-159.14,0.00029589,2]
[312580606,1706025040145,-298.21,0.00029704,2]
[312580607,1706025040155,-153.74812346,0.000299,2]
[312580608,1706025040164,-558.20785079,0.000299,2]
[312580609,1706025040175,-230.66712149,0.00029933,2]
[312580610,1706025040185,-298.21,0.00029993,2]
[312580612,1706025040197,-155.0,0.0003,2]
[312580613,1706025040207,-5623.87809387,0.0003,2]
[312580614,1706025040217,-160.95109704,0.0003,4]
[312580615,1706025040227,-160.1904239,0.0003,4]
[312580616,1706025040236,-210861.0537414,0.0003,2]
[312580617,1706025040251,-474.95635656,0.0003,2]
[312580618,1706025040261,-809.440986,0.0003,4]
[312580619,1706025040272,-426.9761404,0.0003,4]
[312580620,1706025040283,-449.03964698,0.0003,4]
[312580621,1706025040292,-452.52302617,0.0003,4]
[312580622,1706025040300,-155.0,0.0003,4]
[312580624,1706025040309,-360.5512069,0.0003,2]
[312580625,1706025040318,-544.33,0.00030112,2]
[312580626,1706025040327,-298.21,0.00030281,2]
[312580627,1706025040335,-176.35,0.000304,2]
[312580628,1706025040345,-168.99,0.00030445,2]
[312580629,1706025040354,-298.21,0.00030569,2]
[312580630,1706025040365,-169.2,0.00030625,2]
[312580631,1706025040374,-159.14,0.00030685,2]
[312580632,1706025040383,-157.42,0.00030707,2]
[312580633,1706025040392,-230.66712149,0.00030718,2]
[312580634,1706025040402,-360.24556117,0.00030763,5]
[312580635,1706025040411,-1659.50903729,0.0003085,15]
[312580636,1706025040423,-310.51257539,0.0003085,15]
[312580637,1706025040435,-420.8888349,0.0003085,15]
[312580638,1706025040446,-1871.43237019,0.0003085,15]
[312580639,1706025040456,-686.74702387,0.0003085,4]
[312580640,1706025040465,-52.56111739,0.00030858,2]
[312580641,1706025040476,-245.64888261,0.00030858,2]
[312580642,1706025040485,-1000.0,0.00030901,2]
[312580643,1706025040494,-600.0,0.00031,3]
[312580644,1706025040505,-97.6477931,0.00031,2]
[312580645,1706025040520,-302.3522069,0.00031,2]
[312580646,1706025040529,-355.07,0.00031051,2]
[312580647,1706025040539,-813.51,0.00031081,2]
[312580648,1706025040548,-298.21,0.00031146,2]
[312580649,1706025040556,-174.2,0.00031225,2]
[312580650,1706025040565,-298.21,0.00031435,2]
[312580651,1706025040575,-230.66712149,0.00031503,2]
[312580652,1706025040584,-298.21,0.00031723,2]
[312580653,1706025040593,-159.14,0.00031781,2]
[312580654,1706025040602,-1217.05306201,0.000318,14]
[312580655,1706025040611,-3484.50860864,0.000318,2]
[312580656,1706025040622,-545.10283056,0.000318,2]
[312580657,1706025040632,-150.0,0.00032,2]
[312580658,1706025040642,-294.08548322,0.00032,4]
[312580659,1706025040650,-8.64729881,0.00032,2]
[312580660,1706025040662,-4001.99444045,0.00032,2]
[312580661,1706025040670,-298.21,0.00032011,2]
[312580662,1706025040679,-434.16489845,0.00032126,4]
[312580663,1706025040688,-230.66712149,0.00032287,2]
[312580664,1706025040698,-298.21,0.000323,2]
[312580665,1706025040706,-492.0,0.00032306,3]
[312580666,1706025040716,-202.14005141,0.000325,2]
[312580667,1706025040725,-298.21,0.00032588,2]
[312580668,1706025040734,-673.68254572,0.000327,2]
[312580669,1706025040743,-673.68254561,0.000327,2]
[312580670,1706025040755,-673.68254561,0.000327,2]
[312580671,1706025040764,-673.68254561,0.000327,2]
[312580672,1706025040773,-673.68254561,0.000327,2]
[312580673,1706025040783,-673.68254561,0.000327,2]
[312580674,1706025040793,-673.68254561,0.000327,2]
[312580675,1706025040802,-673.68254561,0.000327,2]
[312580676,1706025040811,-673.68254561,0.000327,2]
[312580677,1706025040821,-673.68254561,0.000327,2]
[312580678,1706025040831,-673.68254561,0.000327,2]
[312580679,1706025040840,-673.68254561,0.000327,2]
[312580680,1706025040849,-813.51,0.00032725,2]
[312580681,1706025040858,-250.0,0.00032876,2]
[312580682,1706025040867,-298.21,0.00032877,2]
[312580683,1706025040876,-159.14,0.00032877,2]
[312580684,1706025040885,-136.92114362,0.00032877,2]
[312580685,1706025040898,-373.04885638,0.00032877,2]
[312580686,1706025040907,-1026.78,0.00032877,15]
[312580687,1706025040917,-673.68254561,0.00032923,2]
[312580688,1706025040927,-5736.02608665,0.00033,4]
[312580689,1706025040943,-2662.89145495,0.00033,4]
[312580690,1706025040955,-2458.79018373,0.00033,4]
[312580691,1706025040975,-5820.1921869,0.00033,4]
[312580692,1706025040986,-5120.5,0.00033,4]
[312580693,1706025041073,-4876.42582999,0.00033,4]
[312580694,1706025041082,-838.68112971,0.00033,2]
[312580695,1706025041092,-650.0,0.00033,3]
[312580696,1706025041102,-500.0,0.00033013,2]
[312580697,1706025041111,-230.66712149,0.00033072,2]
[312580698,1706025041120,-320.01651652,0.00033137,4]
[312580699,1706025041130,-417.52146026,0.00033138,4]
[312580700,1706025041140,-202.26172862,0.00033138,2]
[312580701,1706025041149,-300.19258432,0.00033138,4]
[312580702,1706025041159,-750.0,0.0003315,2]
[312580703,1706025041169,-355.07,0.00033315,2]
[312580704,1706025041181,-25725.42706865,0.000335,4]
[312580705,1706025041196,-333.89403112,0.00033568,2]
[312580706,1706025041206,-605.0,0.00033668,3]
[312580707,1706025041216,-673.68254561,0.0003376,2]
[312580708,1706025041226,-230.66712149,0.00033857,2]
[312580709,1706025041237,-1000.0,0.00034,4]
[312580710,1706025041247,-500.0,0.00034,2]
[312580711,1706025041258,-156.31101091,0.00034015,2]
[312580712,1706025041269,-168.93633082,0.00034017,2]
[312580713,1706025041280,-622.17405158,0.0003408,2]
[312580714,1706025041290,-420.01569595,0.0003408,4]
[312580715,1706025041300,-813.51,0.00034369,2]
[312580716,1706025041310,-150.0,0.00034548,10]
[312580717,1706025041319,-673.68254561,0.00034597,2]
[312580718,1706025041329,-167.35,0.00034606,2]
[312580719,1706025041339,-230.66712149,0.00034641,2]
[312580720,1706025041348,-4630.0,0.0003465,2]
[312580721,1706025041358,-360.24556117,0.0003469,7]
[312580722,1706025041368,-1000.0,0.00034764,2]
[312580723,1706025041377,-250.0,0.00034845,2]
[312580724,1706025041387,-157.528,0.00034845,2]
[312580726,1706025041397,-197.0,0.00034845,2]
[312580727,1706025041406,-209.925,0.00034845,2]
[312580728,1706025041416,-218.835,0.00034845,2]
[312580729,1706025041426,-176.0,0.00034845,2]
[312580731,1706025041436,-237.289,0.00034845,2]
[312580733,1706025041446,-150.185,0.00034845,2]
[312580735,1706025041456,-151.015,0.00034845,2]
[312580737,1706025041465,-4049.78632102,0.000349,7]
[312580738,1706025041475,-533.21912523,0.000349,2]
[312580739,1706025041484,-533.21912517,0.000349,2]
[312580740,1706025041493,-533.21912517,0.000349,2]
[312580741,1706025041504,-533.21912517,0.000349,2]
[312580742,1706025041513,-533.21912517,0.000349,2]
[312580743,1706025041523,-26450.29214448,0.00035,15]
[312580744,1706025041535,-24008.0721351,0.00035,15]
[312580745,1706025041559,-2900.0,0.00035,15]
[312580747,1706025041575,-3935.1546,0.00035,15]
[312580749,1706025041586,-42706.48112042,0.00035,15]
[312580751,1706025041596,-513.60306723,0.00035,14]
[312580753,1706025041606,-700.0,0.00035,3]
[312580755,1706025041616,-167.0,0.00035053,2]
[312580757,1706025041625,-744.0,0.00035087,3]
[312580759,1706025041635,-538.7113452,0.00035145,4]
[312580761,1706025041645,-281.28534164,0.00035145,4]
[312580763,1706025041655,-7725.49421759,0.00035145,4]
[312580765,1706025041665,-492.83979718,0.00035145,4]
[312580767,1706025041674,-230.66712149,0.00035426,2]
[312580769,1706025041684,-673.68254561,0.00035433,2]
[312580771,1706025041694,-155.91294937,0.00035499,4]
[312580773,1706025041704,-2020.53490244,0.000355,4]
[312580776,1706025041714,-207.89868806,0.000355,4]
[312580778,1706025041724,-1050.58506121,0.000355,4]
[312580780,1706025041734,-4247.28131875,0.000355,2]
[312580782,1706025041743,-272.87745219,0.000355,4]
[312580784,1706025041754,-265.56171591,0.000355,4]
[312580786,1706025041764,-157.87469733,0.000355,4]
[312580788,1706025041773,-1203.42619613,0.000355,4]
[312580790,1706025041783,-155.0,0.000355,4]
[312580792,1706025041793,-269.92500188,0.000355,4]
[312580794,1706025041802,-389.08953638,0.000355,10]
[312580796,1706025041812,-1812.46036172,0.00035501,4]
[312580798,1706025041822,-200.0,0.00035579,5]
[312580800,1706025041832,-355.07,0.00035579,2]
[312580802,1706025041841,-800.0,0.00035712,5]
[312580804,1706025041852,-162.22386064,0.00035814,2]
[312580806,1706025041863,-100000.0,0.00036,16]
[312580808,1706025041873,-2239.16080322,0.00036,2]
[312580810,1706025041883,-150.0,0.00036,2]
[312580813,1706025041894,-386.17762097,0.00036,2]
[312580815,1706025041904,-800.0,0.00036133,5]
[312580817,1706025041914,-200.0,0.00036198,5]
[312580819,1706025041923,-167.0,0.0003621,2]
[312580821,1706025041933,-230.66712149,0.00036211,2]
[312580823,1706025041942,-673.68254561,0.0003627,2]
[312580825,1706025041951,-4049.78632099,0.00036309,9]
[312580827,1706025041961,-1600.0,0.0003639,5]
[312580829,1706025041970,-533.21912517,0.00036544,2]
[312580831,1706025041979,-800.0,0.00036555,5]
[312580833,1706025041991,-150.0,0.0003659,2]
[312580835,1706025042000,-1026.78,0.00036613,15]
[312580837,1706025042010,-150.0,0.00036649,2]
[312580839,1706025042019,-150.0,0.00036697,2]
[312580841,1706025042029,-150.0,0.00036704,2]
[312580843,1706025042038,-150.0,0.00036711,2]
[312580845,1706025042047,-150.0,0.00036786,2]
[312580847,1706025042057,-150.0,0.00036793,2]
[312580849,1706025042068,-150.0,0.00036797,2]
[312580851,1706025042077,-150.0,0.00036803,2]
[312580853,1706025042086,-150.0,0.00036815,2]
[312580855,1706025042096,-150.0,0.00036822,2]
[312580857,1706025042105,-150.0,0.00036826,2]
[312580858,1706025042115,-202.25903178,0.00036835,2]
[312580859,1706025042125,-150.0,0.00036839,2]
[312580860,1706025042135,-150.0,0.00036847,2]
[312580861,1706025042146,-204.0,0.00036886,2]
[312580862,1706025042155,-150.0,0.00036897,2]
[312580863,1706025042165,-150.0,0.000369,2]
[312580864,1706025042177,-150.0,0.000369,2]
[312580865,1706025042190,-202.25497978,0.000369,5]
[312580866,1706025042199,-150.0,0.00036911,2]
[312580867,1706025042212,-150.0,0.00036912,2]
[312580868,1706025042223,-150.0,0.00036913,2]
[312580869,1706025042233,-150.0,0.00036922,2]
[312580870,1706025042244,-150.0,0.00036925,2]
[312580871,1706025042255,-150.0,0.00036925,2]
[312580872,1706025042265,-185.00571935,0.00036926,10]
[312580873,1706025042274,-150.0,0.00036943,2]
[312580874,1706025042283,-150.0,0.00036945,2]
[312580875,1706025042293,-150.0,0.00036949,2]
[312580876,1706025042303,-150.0,0.00036956,2]
[312580877,1706025042314,-150.0,0.00036965,2]
[312580878,1706025042324,-150.0,0.0003697,2]
[312580879,1706025042334,-800.0,0.00036976,5]
[312580880,1706025042343,-150.0,0.00036982,2]
[312580881,1706025042354,-166.91230757,0.00036985,2]
[312580882,1706025042364,-230.66712149,0.00036995,2]
[312580883,1706025042373,-100000.0,0.00037,17]
[312580884,1706025042383,-176.47,0.00037,2]
[312580885,1706025042393,-150.0,0.00037,2]
[312580886,1706025042403,-500.0,0.00037,2]
[312580887,1706025042413,-257.2,0.00037,30]
[312580888,1706025042422,-750.0,0.00037,3]
[312580889,1706025042432,-155.0,0.00037,2]
[312580890,1706025042442,-150.0,0.00037002,2]
[312580891,1706025042452,-150.0,0.00037016,2]
[312580892,1706025042462,-150.0,0.00037025,2]
[312580893,1706025042472,-300.0,0.00037028,2]
[312580894,1706025042481,-152.80025905,0.00037029,2]
[312580895,1706025042491,-150.0,0.00037042,2]
[312580896,1706025042503,-150.0,0.00037047,2]
[312580897,1706025042513,-1500.0,0.00037053,2]
[312580898,1706025042523,-150.0,0.00037058,2]
[312580899,1706025042533,-150.0,0.00037067,2]
[312580901,1706025042543,-150.0,0.00037073,2]
[312580903,1706025042553,-150.0,0.00037102,2]
[312580905,1706025042563,-673.68254561,0.00037107,2]
[312580907,1706025042573,-150.0,0.00037117,2]
[312580909,1706025042582,-150.0,0.00037132,2]
[312580910,1706025042592,-150.0,0.00037132,2]
[312580911,1706025042602,-1500.0,0.00037135,2]
[312580913,1706025042612,-257.2,0.00037137,30]
[312580915,1706025042622,-150.0,0.0003714,2]
[312580916,1706025042632,-150.0,0.0003715,2]
[312580917,1706025042642,-150.0,0.00037155,2]
[312580918,1706025042652,-150.0,0.00037167,2]
[312580919,1706025042662,-150.0,0.00037178,2]
[312580921,1706025042672,-150.0,0.00037196,2]
[312580923,1706025042682,-300.0,0.00037197,2]
[312580925,1706025042692,-150.0,0.00037201,2]
[312580927,1706025042702,-150.0,0.00037203,2]
[312580929,1706025042712,-150.0,0.00037207,2]
[312580931,1706025042722,-150.0,0.00037218,2]
[312580933,1706025042731,-150.0,0.00037219,2]
[312580935,1706025042741,-150.0,0.00037222,2]
[312580937,1706025042752,-150.0,0.00037224,2]
[312580939,1706025042762,-150.0,0.00037226,2]
[312580941,1706025042771,-150.0,0.00037232,2]
[312580943,1706025042781,-150.0,0.00037244,2]
[312580945,1706025042791,-150.0,0.00037258,2]
[312580947,1706025042802,-150.0,0.0003726,2]
[312580950,1706025042812,-150.0,0.00037266,2]
[312580956,1706025042822,-150.0,0.00037269,2]
[312580959,1706025042832,-1500.0,0.00037273,2]
[312580962,1706025042842,-150.0,0.00037284,2]
[312580965,1706025042852,-300.0,0.0003729,2]
[312580968,1706025042862,-300.0,0.00037316,2]
[312580971,1706025042872,-300.0,0.00037322,2]
[312580974,1706025042882,-150.0,0.00037328,2]
[312580977,1706025042892,-150.0,0.00037363,2]
[312580980,1706025042901,-167.0,0.00037367,2]
[312580982,1706025042911,-150.0,0.00037368,2]
[312580984,1706025042921,-150.0,0.00037375,2]
[312580986,1706025042931,-150.0,0.00037376,2]
[312580988,1706025042941,-150.0,0.0003739,2]
[312580990,1706025042951,-200.0,0.00037396,5]
[312580991,1706025042961,-800.0,0.00037396,5]
[312580992,1706025042971,-150.0,0.00037397,2]
[312580993,1706025042981,-150.0,0.00037397,2]
[312580994,1706025042992,-150.0,0.00037399,2]
[312580995,1706025043004,-150.0,0.00037405,2]
[312580996,1706025043014,-150.0,0.00037406,2]
[312580997,1706025043025,-150.0,0.00037407,2]
[312580998,1706025043036,-150.0,0.00037407,2]
[312580999,1706025043047,-150.0,0.00037408,2]
[312581000,1706025043057,-150.0,0.00037409,2]
[312581001,1706025043067,-150.0,0.00037415,2]
[312581002,1706025043078,-248.18231876,0.00037417,4]
[312581003,1706025043088,-150.0,0.00037422,2]
[312581004,1706025043098,-150.0,0.00037425,2]
[312581005,1706025043108,-150.0,0.00037433,2]
[312581006,1706025043119,-150.0,0.00037434,2]
[312581007,1706025043129,-150.0,0.00037439,2]
[312581008,1706025043139,-150.0,0.00037444,2]
[312581009,1706025043151,-150.0,0.00037448,2]
[312581010,1706025043161,-150.0,0.00037448,2]
[312581011,1706025043173,-150.0,0.0003745,2]
[312581012,1706025043182,-150.0,0.00037451,2]
[312581013,1706025043196,-150.0,0.00037474,2]
[312581043,1706025043451,-150.0,0.00037477,2]
[312581050,1706025043477,-153.49345938,0.00037478,2]
[312581052,1706025043487,-150.0,0.00037483,2]
[312581054,1706025043496,-1426.28501521,0.00037507,2]
[312581056,1706025043510,-150.0,0.00037513,2]
[312581058,1706025043520,-150.0,0.00037535,2]
[312581060,1706025043530,-176.47,0.00037548,2]
[312581062,1706025043539,-151.41324109,0.00037548,2]
[312581064,1706025043549,-979.43084688,0.00037548,2]
[312581066,1706025043559,-1500.0,0.00037548,2]
[312581068,1706025043568,-150.0,0.0003756,2]
[312581070,1706025043578,-150.0,0.00037565,2]
[312581072,1706025043587,-150.0,0.00037566,2]
[312581074,1706025043597,-1500.0,0.00037578,2]
[312581076,1706025043606,-150.0,0.00037578,2]
[312581077,1706025043616,-150.0,0.0003758,2]
[312581078,1706025043626,-150.0,0.00037596,2]
[312581079,1706025043636,-1000.0,0.00037599,2]
[312581080,1706025043647,-483.258163,0.000376,7]
[312581081,1706025043657,-150.0,0.000376,2]
[312581082,1706025043666,-55555.0,0.000376,3]
[312581083,1706025043677,-150.0,0.00037603,2]
[312581084,1706025043686,-1500.0,0.0003762,2]
[312581085,1706025043696,-333.89403109,0.00037626,2]
[312581086,1706025043706,-150.0,0.00037636,2]
[312581087,1706025043716,-150.0,0.00037643,2]
[312581088,1706025043726,-150.0,0.00037646,2]
[312581089,1706025043736,-150.0,0.00037647,2]
[312581090,1706025043747,-150.0,0.00037655,2]
[312581091,1706025043760,-150.0,0.00037655,2]
[312581092,1706025043769,-204.0,0.00037657,3]
[312581093,1706025043779,-1500.0,0.00037674,2]
[312581094,1706025043789,-1500.0,0.00037679,2]
[312581095,1706025043798,-150.0,0.00037682,2]
[312581096,1706025043808,-1500.0,0.0003769,2]
[312581097,1706025043817,-1164.4409,0.00037697,2]
[312581098,1706025043827,-567.04871616,0.00037698,4]
[312581099,1706025043838,-2338.86690149,0.00037698,4]
[312581100,1706025043847,-3299.43555455,0.00037698,2]
[312581101,1706025043857,-2000.0,0.00037699,4]
[312581102,1706025043867,-2309.13609472,0.00037699,4]
[312581103,1706025043877,-155.0,0.00037699,4]
[312581104,1706025043886,-200.0,0.00037699,2]
[312581105,1706025043895,-155.0,0.00037699,2]
[312581106,1706025043904,-357.21207229,0.00037699,4]
[312581107,1706025043914,-2000.0,0.00037699,2]
[312581108,1706025043923,-195.10400093,0.000377,2]
[312581109,1706025043933,-158.29,0.000377,3]
[312581110,1706025043942,-152.99,0.000377,3]
[312581111,1706025043953,-1203.59,0.000377,3]
[312581112,1706025043962,-1203.59,0.000377,3]
[312581113,1706025043971,-1203.59,0.000377,3]
[312581114,1706025043981,-1203.59,0.000377,3]
[312581115,1706025043991,-1203.59,0.000377,3]
[312581116,1706025044002,-1203.59,0.000377,3]
[312581117,1706025044011,-1203.59,0.000377,3]
[312581118,1706025044020,-1203.59,0.000377,3]
[312581119,1706025044029,-1203.59,0.000377,3]
[312581120,1706025044038,-1203.59,0.000377,3]
[312581121,1706025044048,-1203.59,0.000377,3]
[312581122,1706025044058,-1203.59,0.000377,3]
[312581123,1706025044068,-1203.59,0.000377,3]
[312581124,1706025044077,-1203.59,0.000377,3]
[312581125,1706025044086,-1203.59,0.000377,3]
[312581126,1706025044095,-1203.59,0.000377,3]
[312581127,1706025044104,-1203.59,0.000377,3]
[312581128,1706025044114,-1203.59,0.000377,3]
[312581129,1706025044123,-1203.59,0.000377,3]
[312581130,1706025044132,-1203.59,0.000377,3]
[312581131,1706025044142,-4049.78632099,0.00037718,11]
[312581132,1706025044153,-151.276,0.00037741,7]
[312581133,1706025044163,-16217.1205104,0.0003778,2]
[312581134,1706025044174,-230.66712149,0.0003778,2]
[312581135,1706025044187,-401.43306328,0.0003778,2]
[312581136,1706025044197,-183.11620058,0.0003778,2]
[312581137,1706025044207,-157.77784508,0.0003778,2]
[312581138,1706025044219,-4490.4877716,0.00037795,4]
[312581139,1706025044229,-3005.83468397,0.00037795,9]
[312581140,1706025044239,-487.16063615,0.00037795,4]
[312581141,1706025044250,-242.30425329,0.00037796,4]
[312581142,1706025044263,-2616.90790933,0.00037796,4]
[312581143,1706025044273,-156.77132149,0.00037797,4]
[312581144,1706025044283,-11823.06122871,0.00037797,4]
[312581145,1706025044293,-260.34839594,0.00037797,4]
[312581146,1706025044302,-310.52074565,0.00037797,4]
[312581147,1706025044312,-262.5953698,0.00037797,4]
[312581148,1706025044321,-250.33246589,0.00037797,4]
[312581149,1706025044330,-155.48396173,0.00037797,4]
[312581150,1706025044341,-637.65870148,0.00037797,4]
[312581151,1706025044351,-640.3877892,0.00037797,4]
[312581152,1706025044361,-368.01428488,0.00037797,4]
[312581153,1706025044371,-1075.57554515,0.00037797,2]
[312581154,1706025044381,-343.09423097,0.00037797,4]
[312581155,1706025044391,-156.87479774,0.00037797,2]
[312581156,1706025044401,-359.64122164,0.00037797,4]
[312581157,1706025044411,-16760.62595847,0.00037797,4]
[312581158,1706025044421,-1256.24889353,0.00037797,4]
[312581159,1706025044431,-155.0,0.00037797,4]
[312581160,1706025044441,-342.79772441,0.00037797,4]
[312581161,1706025044451,-251.70188647,0.00037797,4]
[312581162,1706025044460,-155.78001372,0.00037797,4]
[312581163,1706025044470,-157.9801797,0.00037797,4]